[Event "45th FIDE Olympiad 2024"]
[Site "Budapest"]
[Date "2024.09.15"]
[Round "5.115"]
[White "Sahidi, Samir"]
[Black "Berend, Elvira"]
[Result "1/2-1/2"]
[ECO "A13"]
[WhiteElo "2474"]
[BlackElo "2219"]
[Annotator "TA"]
[PlyCount "148"]
[EventDate "2024.09.05"]
[EventType "team-tourn"]
[EventCountry "HUN"]
[SourceTitle "playchess.com"]
[Source "ChessBase"]
[SourceQuality "1"]
[WhiteTeam "Slovakia"]
[BlackTeam "Luxembourg"]
[WhiteTeamCountry "SVK"]
[BlackTeamCountry "LUX"]
[TimeControl "40/5400+30:1800+30"]

{[%evp 9,148,11,0,20,11,10,18,9,0,0,9,0,19,0,0,0,0,-3,12,-21,-11,-23,0,-33,10,0,1,0,0,0,17,4,51,53,38,38,74,81,82,87,79,83,82,84,86,14,120,102,91,85,135,118,109,119,120,40,64,48,115,112,107,122,104,59,120,100,113,107,245,244,244,243,580,572,471,228,183,97,193,97,97,10,11,11,11,11,18,18,18,18,27,0,0,0,0,25,16,25,25,0,0,0,0,0,4,0,0,0,0,0,5031,2347,1007,1021,1007,933,933,0,0,0,0,0,0,0,0,0,0,0,0,0,0,0,0,0,0,0,0,0,0,0,0]} 1. Nf3 d5 2. c4 e6 3. g3 Nf6 4. Bg2 dxc4 5. Qa4+ Bd7 6. Qxc4 c5 7. O-O Bc6 8. b3 Be7 9. Bb2 O-O 10. d3 Nbd7 11. Nbd2 Rc8 12. Rfd1 b5 13. Qc1 Nb6 14. Ne5 Bxg2 15. Kxg2 Nfd7 16. Ng4 Nf6 17. Nxf6+ Bxf6 18. Bxf6 Qxf6 19. Qa3 Qe7 20. Rac1 f5 (20... Qb7+ $11 21. Kg1 Nd7) 21. Qa6 $14 Qd7 22. Nf3 f4 23. Rd2 fxg3 24. hxg3 Rf5 {[#]} 25. a4 $1 bxa4 26. bxa4 Rcf8 {[%cal Og7g5]} 27. d4 (27. Kg1 $16) 27... cxd4 (27... c4 $11 {keeps the balance.}) 28. Rxd4 Qf7 {[%cal Rf5f3]} 29. Qd3 h6 (29... Rd5 $142) 30. Rd8 Rxd8 31. Qxd8+ Qf8 32. Qxf8+ (32. Qc7 $16 Nxa4 33. Qxa7) 32... Kxf8 $16 {[%mdl 4096] Endgame. KRN-KRN} 33. Nd4 {[%csl LRe6,LRf5]} Ra5 (33... Re5 $14) 34. Rc7 ({Don't do} 34. Nxe6+ Ke7 $18) 34... g5 35. Nxe6+ Kg8 36. Nd4 {White is much more active.} ({But not} 36. Rg7+ $6 Kh8 $11) 36... Nxa4 (36... g4 $14) 37. Nc6 Ra6 38. Nxa7 Nc3 39. Rxc3 $18 Rxa7 {KR-KR} 40. f4 $1 Re7 $2 (40... Kg7 41. Kf3 gxf4) 41. Kf3 g4+ 42. Kf2 (42. Kxg4 $142 Rxe2 43. Kh5) 42... Kg7 43. Rc6 (43. Re3 $18 Ra7 44. Rc3) 43... Kh7 {[#]} (43... Re4 $16) 44. Rd6 ({White should try} 44. Rc4 $1 $18 {Strongly threatening f5.} Rb7 45. Rc3) 44... Re4 $16 45. e3 ({Better is} 45. Ke1 $16) 45... Ra4 $11 46. Ke2 Ra3 47. Rd3 Ra2+ 48. Rd2 Ra3 49. Kf2 Kg6 50. e4 Rf3+ 51. Kg2 Re3 52. Rd6+ Kh5 53. Rd5+ Kg6 54. e5 Kf5 55. Rd6 h5 56. Rh6 Ke4 57. e6 Re2+ 58. Kf1 Kf3 59. f5 (59. Rxh5 Rxe6 60. Re5 Rh6) 59... h4 {[%mdl 8192]} 60. Rxh4 $18 Ra2 61. Ke1 {aiming for Rh8.} Ra5 62. Rh7 {White threatens e7 and mate.} Ke3 {[#]} 63. Kd1 $2 (63. Rd7 $1 $18 {Intending f6 and mate.} Rxf5 64. e7) 63... Rxf5 $11 {The position is equal.} 64. Kc2 Re5 65. e7 Kf3 66. Kd3 Kxg3 67. Kd4 Re1 68. Kd5 Kg2 69. Kd6 g3 70. Rh6 {Re6 would kill now.} Rxe7 71. Kxe7 Kf2 72. Rf6+ Ke2 73. Rg6 Kf2 74. Rxg3 Kxg3 {Weighted Error Value: White=0.19 (very precise) /Black=0.22 (precise) .  Loses game:     	---       	Black=1      Mistake:       	White=6     	Black=8      Inaccurate:     	White=4     	Black=2      OK:         	White=14    	Black=35     Best:        	White=4     	Black=5      Strong:       	White=1     	---} 1/2-1/2

[Event "45th FIDE Olympiad 2024"]
[Site "Budapest"]
[Date "2024.09.15"]
[Round "5.116"]
[White "Gengler, Pierre"]
[Black "Kostolansky, Sebastian Lukas"]
[Result "0-1"]
[ECO "B41"]
[WhiteElo "2097"]
[BlackElo "2405"]
[Annotator "TA"]
[PlyCount "52"]
[EventDate "2024.09.05"]
[EventType "team-tourn"]
[EventCountry "HUN"]
[SourceTitle "playchess.com"]
[Source "ChessBase"]
[SourceQuality "1"]
[WhiteTeam "Luxembourg"]
[BlackTeam "Slovakia"]
[WhiteTeamCountry "LUX"]
[BlackTeamCountry "SVK"]
[TimeControl "40/5400+30:1800+30"]

{[%evp 10,52,15,-38,-24,-52,-77,-114,-120,-118,-121,-118,-69,-143,-133,-170,-184,-197,-60,-593,-593,-607,-615,-620,-621,-615,-602,-629,-641,-644,-644,-678,-669,-718,-718,-820,-816,-862,-878,-883,-872,-1317,-1335,-1403,-1359]} 1. e4 c5 2. Nf3 e6 3. d4 cxd4 4. Nxd4 a6 5. g3 d5 6. Bg2 (6. Nb3 $11) 6... dxe4 $1 $15 7. O-O f5 8. g4 Nf6 {Black is better.} 9. gxf5 exf5 10. Nc3 Bd6 {Prevents Bf4.} (10... Bc5 $17 11. Be3 Ba7) 11. Bh3 {[#]} (11. f3 $1 $15) 11... g6 $1 $17 12. Bh6 Be5 13. Nce2 Ng4 (13... Nd5 $19 {aiming for ...Qh4.} 14. Re1 Nc6) 14. f4 $2 {[%mdl 8192] White does not recover from this.} (14. Bxg4 $15 Qh4 15. f4 Qxg4+ 16. Kh1) 14... Bxd4+ $19 {Black is clearly winning.} 15. Nxd4 Nxh6 16. c3 O-O 17. Qb3+ Nf7 18. Rad1 Qh4 19. Bg2 Nc6 20. Nc2 Qe7 21. Ne3 Be6 22. c4 Rad8 23. Qc3 Rxd1 24. Rxd1 Rd8 25. Rd5 Bxd5 26. Nxd5 Qc5+ {Weighted Error Value: White=0.52/Black=0.14 (very precise) .  Loses game:     	White=1     	---        Mistake:       	White=1     	Black=2      Inaccurate:     	White=2     	---        OK:         	White=2     	Black=4      Best:        	---       	Black=1      Strong:       	---       	Black=1} 0-1

[Event "45th FIDE Olympiad 2024"]
[Site "Budapest"]
[Date "2024.09.15"]
[Round "5.117"]
[White "Gascon Del Nogal, Jose Rafael"]
[Black "Lee, Junhyeok"]
[Result "0-1"]
[ECO "E70"]
[WhiteElo "2454"]
[BlackElo "2364"]
[Annotator "TA"]
[PlyCount "44"]
[EventDate "2024.09.05"]
[EventType "team-tourn"]
[EventCountry "HUN"]
[SourceTitle "playchess.com"]
[Source "ChessBase"]
[SourceQuality "1"]
[WhiteTeam "Venezuela"]
[BlackTeam "South Korea"]
[WhiteTeamCountry "VEN"]
[TimeControl "40/5400+30:1800+30"]

{[%evp 9,44,29,48,27,31,19,35,27,32,43,62,58,65,48,60,49,75,7,-2,-1,0,0,8,-19,25,17,24,15,15,-25,0,-101,-99,-1001,-983,-977,-967]} 1. d4 Nf6 2. c4 g6 3. Nc3 Bg7 4. e4 d6 5. h4 h5 6. f3 O-O 7. Bg5 c5 8. d5 {White is slightly better.} Nh7 9. Be3 e6 10. Qd2 exd5 11. Nxd5 Nc6 12. Ne2 Be6 13. Rd1 (13. Nef4 $16) 13... Bxd5 $11 14. cxd5 Ne5 {White must now prevent ...Nc4.} 15. Nc3 f5 16. exf5 gxf5 17. Kf2 Qf6 {And now ...f4 would win.} 18. g3 Rae8 19. Rc1 Qf7 {[%cal Oe5g4]} 20. Ne2 (20. Bf4 $11) 20... Nf6 $17 {[%cal Oe5g4] Strongly threatening ...Neg4+! Black is more active.} 21. Bg5 $2 {[%mdl 8192] [#]} (21. Bf4 $17) 21... Ne4+ $1 $19 {[%mdl 512]} 22. fxe4 fxe4+ {Weighted Error Value: White=0.53/Black=0.08 (flawless) .  Loses game:     	White=1     	---        Mistake:       	White=2     	---        Inaccurate:     	White=2     	Black=2      OK:         	White=4     	Black=7      Best:        	White=1     	Black=1      Brilliant:      	---       	Black=1} 0-1

[Event "45th FIDE Olympiad 2024"]
[Site "Budapest"]
[Date "2024.09.15"]
[Round "5.118"]
[White "Ahn, Hongjin"]
[Black "Ynojosa Aponte, Felix Jose"]
[Result "0-1"]
[ECO "B28"]
[WhiteElo "2251"]
[BlackElo "2398"]
[Annotator "TA"]
[PlyCount "94"]
[EventDate "2024.09.05"]
[EventType "team-tourn"]
[EventCountry "HUN"]
[SourceTitle "playchess.com"]
[Source "ChessBase"]
[SourceQuality "1"]
[WhiteTeam "South Korea"]
[BlackTeam "Venezuela"]
[BlackTeamCountry "VEN"]
[TimeControl "40/5400+30:1800+30"]

{[%evp 9,94,62,62,44,45,49,57,8,13,0,14,15,10,15,45,58,94,114,109,115,112,111,133,151,141,41,45,47,62,37,52,32,17,21,74,0,0,0,0,-52,-25,-63,-63,-167,-70,-262,-148,-186,-191,-176,-82,-82,-64,-69,-89,-93,-61,-387,-377,-285,-119,-944,-952,-993,-910,-1017,-1008,-977,-973,-29972,-29972,-29990,-29991,-29992,-29987,-29987,-1502,-29988,-29989,-29990,-29988,-29988,-29989,-29991,-29992,-29993,-29992]} 1. e4 c5 {[%cal Bc7c5,Bc5c4][%mdl 32]} 2. Nf3 a6 3. c3 b5 {[%cal Bb7b5,Bb5b4,Bb4b3][%mdl 32]} 4. d4 Bb7 5. Bd3 e6 6. a4 c4 7. Bc2 d5 8. e5 (8. Nbd2 $14) 8... b4 $11 9. Nbd2 Nc6 10. Nf1 b3 11. Bb1 f5 {[#]} 12. g4 $1 g6 (12... Nge7 13. gxf5) 13. gxf5 exf5 14. h4 Qd7 15. h5 Bg7 16. Ng3 Nge7 17. hxg6 (17. Bg5 $16) 17... hxg6 $14 18. Rxh8+ Bxh8 19. Nh4 {[%cal Oh4g6] Strongly threatening Nxg6!} Qe6 20. a5 O-O-O {[%cal Oh8e5]} 21. Bg5 Rf8 (21... Re8 $11) 22. Ng2 ({Better is} 22. Ne2 $16) 22... Qf7 $11 23. Qe2 Bg7 24. Ra4 (24. Qe3 $11) 24... Rh8 $15 25. Qe3 Kb8 26. Qf4 (26. Nf1 $15) 26... Ka8 (26... Qe8 $1 $19 {[%cal Oc6d4] ...Nxd4! is the strong threat.} 27. Ra1 Qf8) 27. Ne3 $2 (27. Qe3 $1 $15) 27... Qe8 (27... Nd8 $1 $19 {[%cal Rd8e6] White must now prevent ...Ne6.} 28. Qf3 Ne6 29. Bxe7 Qxe7) 28. Bxe7 Nxe7 29. Rb4 Qd8 (29... Bh6 30. Qf3 Bxe3 31. Qxe3 $17) (29... Bc6 $1 $19 {and Black stays clearly on top. Threatens to win with ...Bh6.} 30. Rb6 Nc8 31. Rxa6+ Kb7 32. Rxc6 Qxc6) 30. Qf3 $17 {[%cal Oe3c4]} Qxa5 31. Nxc4 $1 {[#]} Qxb4 32. cxb4 dxc4 33. Be4 {[%mdl 8192]} fxe4 $19 34. Qf7 {[#]} Bh6 (34... Bf8 35. b5 $17 (35. Qxc4 $2 Nd5 $17) (35. Qf6 $2 c3 $19)) (34... Rc8 $1 $19 {[%cal Oc4c3] And now ...c3! would win.} 35. Ne2 (35. Qxe7 $2 {too greedy.} c3 $19) 35... Bf8) 35. Qxc4 {[%mdl 8192] [#]} (35. Qxe7 $17 c3 36. Qf7 (36. Qf6 $2 cxb2 37. Qxh8+ Ka7 $19)) 35... Rc8 $1 36. Qe6 Rc1+ 37. Ke2 Nd5 {( -> ...Nf4+)} 38. Qe8+ Rc8 39. Qa4 Nf4+ 40. Ke3 Nd3+ 41. Ke2 Rc2+ 42. Kf1 Rxf2+ 43. Kg1 e3 {Black mates.} 44. d5 e2 45. Nxe2 Rxe2 46. Qxb3 Be3+ ({Not} 46... Rxb2 47. Qxd3 Rxb4 48. e6 $14) 47. Kh1 Nf4 {What a bad dream for White.   Weighted Error Value: White=0.54/Black=0.18 (very precise) .  Loses game:     	White=3     	---        Missed win:     	---       	Black=1      Mistake:       	White=5     	Black=4      Inaccurate:     	White=1     	Black=2      OK:         	White=11    	Black=9      Best:        	White=1     	Black=2      Strong:       	White=1     	Black=1      Brilliant:      	---       	Black=1} 0-1

[Event "45th FIDE Olympiad 2024"]
[Site "Budapest"]
[Date "2024.09.15"]
[Round "5.119"]
[White "Escalona Landi, Samid Eduardo"]
[Black "Lee, Kyungseok"]
[Result "1-0"]
[ECO "A14"]
[WhiteElo "2305"]
[BlackElo "2044"]
[Annotator "TA"]
[PlyCount "160"]
[EventDate "2024.09.05"]
[EventType "team-tourn"]
[EventCountry "HUN"]
[SourceTitle "playchess.com"]
[Source "ChessBase"]
[SourceQuality "1"]
[WhiteTeam "Venezuela"]
[BlackTeam "South Korea"]
[WhiteTeamCountry "VEN"]
[TimeControl "40/5400+30:1800+30"]

{[%evp 49,160,-91,-101,-98,127,124,132,121,137,124,119,138,133,132,138,128,136,107,208,207,198,156,156,152,145,145,141,135,260,259,319,314,319,319,319,271,343,344,642,341,348,348,341,333,341,334,320,289,272,272,262,254,1688,1688,1673,317,305,0,1140,1491,800,730,1688,1688,1688,1688,1688,1688,1681,1681,1681,1681,804,796,782,775,760,760,680,618,29937,29939,29936,493,29936,442,12835,12848,29965,29965,29963,29963,29957,29945,29946,29944,29957,29955,29955,29956,29971,29962,29961,29955,29955,12346,12849,10736,29957,29959,29962,11163,4943]} 1. Nf3 d5 2. c4 e6 3. g3 Nf6 4. b3 d4 5. Bg2 Be7 6. O-O O-O 7. e3 Nc6 {A14: English Opening: 1...e6 with b3 by White.} 8. Re1 e5 9. Bb2 Bg4 10. h3 Bh5 11. e4 $146 ({Predecessor:} 11. g4 Bg6 12. exd4 exd4 13. Nh4 Nd7 14. Nxg6 fxg6 15. d3 Nde5 16. Qe2 Bb4 17. Rf1 {0-1 Cardenas Huaman,A (2140)-Leisner,J (2107) PER-USA email 2013 [14]}) 11... Nd7 12. d3 a5 13. a3 Nc5 14. Qc2 Ra6 15. Nbd2 Rb6 16. Rab1 Qd7 17. Bc1 Bg6 18. g4 h5 19. Nh2 Bg5 20. Bf3 h4 21. Bg2 Qe7 22. Nhf3 Bf4 23. Kh1 Bh7 24. Ng1 g5 25. Ne2 Bxd2 26. Bxd2 f6 $2 (26... Ne6 $17 27. Qc1 f6) 27. b4 $16 axb4 28. axb4 Nxb4 29. Rxb4 Nxd3 30. Qxd3 Rxb4 31. Qa3 c5 32. Bxb4 cxb4 33. Qb3 Qc5 {[#]} (33... Kh8 $16) 34. Nc1 $1 $18 Rc8 35. Nd3 Qxc4 36. Qxc4+ Rxc4 37. Rb1 Bg6 38. Nxb4 (38. Rxb4 Rc3 39. Nb2 Rc1+ 40. Kh2 Rc2 $16) 38... d3 (38... Rc5 $16 39. Ra1 Rb5) 39. Nxd3 $18 Rxe4 40. Rxb7 (40. Nc5 Rxg4 41. Rxb7 (41. Bd5+ Kh8 $18) 41... Rd4 $18) 40... Re2 41. Nc5 Rxf2 42. Kg1 Rc2 43. Bd5+ Kf8 $2 (43... Kh8) 44. Ne4 Bxe4 45. Bxe4 Rc3 46. Kg2 Rg3+ 47. Kh2 Re3 48. Bg6 Rf3 49. Rf7+ Kg8 50. Kg2 Rf4 $2 (50... e4 51. Re7 Rg3+ 52. Kh2 e3) 51. Rc7 $18 Kf8 52. Bh5 $2 (52. Rh7 Kg8 53. Rf7) 52... Kg8 $18 53. Bg6 $2 (53. Ra7) 53... Kf8 $18 54. Rd7 Kg8 55. Rf7 e4 56. Re7 Rf3 57. Bxe4 Rg3+ 58. Kh2 Kf8 59. Ra7 Re3 60. Bg6 Re2+ 61. Kg1 Re3 62. Kg2 Rg3+ 63. Kf2 Rxh3 64. Rf7+ Kg8 65. Rxf6 Kg7 66. Rc6 (66. Rd6 $142 Ra3 67. Be4 Kf7 68. Rd5 Ra2+ 69. Ke3 Ra3+ 70. Bd3 Ra1 71. Rxg5) 66... Ra3 (66... Rh2+ $18 67. Ke3 Rg2) 67. Bf5 (67. Be4 $142 Ra5 68. Ke3 h3 69. Rg6+ Kf7 70. Rh6 Kg7 71. Rh7+ (71. Rxh3 Ra3+ 72. Bd3 Ra4 $18) 71... Kg8 72. Rh5 (72. Rxh3 Kg7 $18)) 67... Ra2+ (67... Kf7 $142 68. Rc5 Ra2+ 69. Ke3 Ra6) 68. Ke3 $18 Ra8 69. Rg6+ Kf7 70. Rxg5 Rh8 71. Be4 h3 72. Rf5+ Ke6 73. Bd5+ Kd6 74. Kf2 Rh4 75. Kg3 Rh8 76. Bh1 Ke7 77. Rf2 (77. Kh2 $142 Rh4 78. Bf3 Rh7 79. g5 Ke6 80. Bg4 Rg7 81. Kxh3 (81. Bxh3 Ke7 $18) 81... Rh7+ 82. Kg3) 77... Ke6 78. Be4 Ke5 79. Bg6 Ke6 80. Bh5 Kd5 1-0

[Event "45th FIDE Olympiad 2024"]
[Site "Budapest"]
[Date "2024.09.15"]
[Round "5.120"]
[White "Huh, Isaak"]
[Black "Castro Torres, Jose Luis"]
[Result "1/2-1/2"]
[ECO "B78"]
[WhiteElo "2114"]
[BlackElo "2299"]
[Annotator "RC"]
[PlyCount "280"]
[EventDate "2024.09.05"]
[EventType "team-tourn"]
[EventCountry "HUN"]
[SourceTitle "playchess.com"]
[Source "ChessBase"]
[SourceQuality "1"]
[WhiteTeam "South Korea"]
[BlackTeam "Venezuela"]
[BlackTeamCountry "VEN"]
[TimeControl "40/5400+30:1800+30"]

1. e4 c5 2. Nf3 Nc6 3. d4 cxd4 4. Nxd4 g6 5. Nc3 Bg7 6. Be3 d6 7. Bc4 Nf6 8. f3 Bd7 9. Qd2 O-O 10. O-O-O Ne5 11. Bb3 a5 12. a4 Rc8 13. Qe2 Rxc3 14. bxc3 Qc7 15. Nb5 Bxb5 16. Qxb5 Rc8 17. Kd2 Ned7 18. Ke2 b6 19. Bd4 Nc5 20. Rb1 Nfd7 21. Rhd1 Bf8 22. Kf2 d5 23. exd5 Qxh2 24. Rh1 Qf4 25. Rbe1 Nf6 26. Kg1 Qg3 27. Bf2 Qd6 28. c4 h5 29. Rh4 Bh6 30. Rd4 Ne8 31. Rdd1 Kf8 32. Ba2 Bf4 33. Rb1 Bh2+ 34. Kf1 Qf4 35. Qxb6 Nxa4 36. Qxa5 Rxc4 37. Qd8 Rxc2 38. Qxe7+ Kg7 39. Re2 Rxe2 40. Qxe2 Nc3 41. Qb2 Qf6 42. Bc4 Nxb1 43. Bd4 Nd2+ 44. Ke2 Nxc4 45. Bxf6+ Nxf6 46. Qd4 Ne5 47. f4 Ned7 48. Kf3 h4 49. d6 Bg3 50. Qc3 Nf8 51. Qa1 N8d7 52. Qc3 Kh7 53. Qc4 Kg8 54. Qc8+ Nf8 55. Qa6 N6d7 56. Qa5 Ne6 57. Qa8+ Kg7 58. Qa1+ Kh7 59. Qa7 Nec5 60. Qa2 Kg8 61. Qa8+ Nf8 62. Qd5 Ncd7 63. Qa5 Bh2 64. Qa7 g5 65. fxg5 Bxd6 66. Qd4 Bg3 67. Ke2 Ne5 68. Qd8 Neg6 69. Qc8 Kg7 70. Qc3+ Be5 71. Qd2 Ne6 72. Kf1 Bf4 73. Qc3+ Kh7 74. Qf6 Kg8 75. Qb2 Nxg5 76. Qb7 Kg7 77. Qb2+ Be5 78. Qb5 Ne4 79. Qd5 Ng3+ 80. Ke1 Kf6 81. Qf3+ Bf4 82. Qg4 Nf5 83. Qf3 Ne5 84. Qa8 Kg5 85. Qg8+ Kh5 86. Kf2 Nh6 87. Qc8 Neg4+ 88. Ke2 Be5 89. Qd7 Kg6 90. Qd8 Nf5 91. Qg8+ Bg7 92. Qd8 Nf6 93. Qc8 Nd4+ 94. Ke3 Ne6 95. Qc2+ Kg5 96. Qc8 Ng4+ 97. Ke2 Kf4 98. Qb8+ Be5 99. Qb7 Nd4+ 100. Kf1 f5 101. Qa8 Ne3+ 102. Kg1 Kg3 103. Qg8+ Ng4 104. Qc4 f4 105. Qd3+ f3 106. gxf3 Nxf3+ 107. Kf1 h3 108. Ke2 Ngh2 109. Qg6+ Kf4 110. Qf7+ Kg5 111. Qg8+ Kh6 112. Qe6+ Kg7 113. Qe7+ Kg6 114. Qe8+ Kf6 115. Qf8+ Kg6 116. Qe8+ Kf5 117. Qc8+ Kf4 118. Qf8+ Ke4 119. Qa8+ Kf4 120. Qf8+ Kg4 121. Qc8+ Kg3 122. Qg8+ Kh4 123. Qh7+ Kg4 124. Qd7+ Kg3 125. Qd3 Bf4 126. Qc3 Be5 127. Qb3 Kh4 128. Qb4+ Nd4+ 129. Ke1 Ng4 130. Kf1 Kg3 131. Qe1+ Kf4 132. Qh4 h2 133. Kg2 Nf5 134. Qe1 Nfe3+ 135. Kh1 Nd1 136. Qd2+ Nde3 137. Qd4+ Kf3 138. Qf4+ Ke2 139. Qf3+ Kd2 140. Qe2+ Kxe2 1/2-1/2

[Event "45th FIDE Olympiad 2024"]
[Site "Budapest"]
[Date "2024.09.15"]
[Round "5.121"]
[White "Dardha, Daniel"]
[Black "Tan, Jun Ying"]
[Result "1-0"]
[ECO "D15"]
[WhiteElo "2603"]
[BlackElo "2322"]
[Annotator "TA"]
[PlyCount "88"]
[EventDate "2024.09.05"]
[EventType "team-tourn"]
[EventCountry "HUN"]
[SourceTitle "playchess.com"]
[Source "ChessBase"]
[SourceQuality "1"]
[WhiteTeam "Belgium"]
[BlackTeam "Malaysia"]
[WhiteTeamCountry "BEL"]
[BlackTeamCountry "MAS"]
[TimeControl "40/5400+30:1800+30"]

{[%evp 9,88,25,22,20,25,11,8,20,9,7,45,41,70,74,72,66,68,54,52,55,47,65,100,91,92,120,107,65,73,64,115,128,150,128,219,214,654,650,29974,29975,29975,29976,29976,29977,29977,29978,29978,29979,29979,29980,29980,29981,29981,29982,29981,29982,29986,29987,29981,29978,29978,29979,29979,29980,29980,29981,29980,29978,29978,29979,29979,29980,29980,29981,29979,29980,29984,29985,29985,29984,29982]} 1. Nf3 d5 2. e3 Nf6 3. c4 c6 4. d4 Bf5 5. Nc3 a6 6. c5 h6 7. Bd3 Bxd3 8. Qxd3 {The position is equal.} Nbd7 9. b4 a5 10. b5 e5 {White must now prevent ...e4.} 11. bxc6 bxc6 {Hoping for ...e4.} 12. dxe5 Nxc5 13. Qc2 Nfd7 14. O-O Be7 15. e4 dxe4 16. Nxe4 {[%cal Bc3e4,Be4g3,Bg3f5][%mdl 32]} O-O 17. Ng3 Re8 18. Bb2 Bf8 19. Rad1 Qc8 {White leaves nothing to chance now.} (19... Qc7 $14) 20. Nf5 $16 Qa6 21. Rd4 {White has more active pieces.} Re6 (21... Rab8 $16 {is a better defense.}) 22. Rfd1 $18 Nxe5 $2 (22... Rd8 23. h4 Qa8) 23. Nxe5 Rxe5 {[#]} 24. Nxh6+ $1 {[%mdl 512] White mates.} gxh6 25. Rg4+ Rg5 26. Rxg5+ hxg5 {[#]} 27. Qc3 $1 {[%csl Gb2][%cal Rc3h8]} f6 28. Qxf6 Qb7 {[#]} 29. Qh8+ $1 (29. Qxg5+ Bg7 30. Bxg7 (30. Qxc5 Qxb2 31. Qc4+ Kh7 $11) 30... Ne6 $11) 29... Kf7 30. Qh7+ Ke8 31. Qg6+ Qf7 32. Qxc6+ ({Stronger than} 32. Qxg5 Qxf2+ (32... Qxa2 $2 {loses.} 33. Qg6+ Qf7 34. Qxc6+ $18) 33. Kh1 Qf7 $11 (33... Qxb2 $2 {too greedy.} 34. Qh5+ Ke7 35. Qxc5+ Kf7 36. Qc4+ Kg6 37. Qxc6+ Kg7 38. Qxa8 $18)) 32... Nd7 33. Qxa8+ Ke7 34. Ba3+ Kf6 35. Qf3+ Kg6 36. Qxf7+ Kxf7 37. Rxd7+ Ke6 38. Rd3 Bg7 39. g4 Ba1 40. Rb3 Bd4 41. Rb5 Bc3 42. Bb2 Bb4 {[#]} 43. Rxb4 $1 axb4 44. Bc1 Kd5 {Weighted Error Value: White=0.03 (flawless) /Black=0.53.  Mistake:       	---       	Black=3      Inaccurate:     	White=1     	Black=4      OK:         	White=10    	Black=6      Best:        	---       	Black=1} 1-0